{"text_format":"1","workbook":"xlsx","n_sheets":4,"sheets":["depo","Arsiv","FiilenGirEkDers","Kodlar"],"not_rendered":{"charts":0,"images":9,"macros":1,"external_links":0,"defined_names":4,"comments":1,"pivot_tables":0},"unopened":[],"bounds":{"document_bytes":16777216,"sheet_cells":100000,"rows_first":2000,"rows_last":500,"rows_between":2000,"halvings":0,"cell_chars":16384,"cell_head_chars":4096},"cells_cut":0,"cells_raw":0,"read":"whole","date_system":"1900"}

{"sheet":"depo","index":0,"n_rows":25,"n_cols":47,"rows_kept":25,"cut":false,"hidden":false,"merged":[[0,3,0,8]]}
[null,null,null,"Not: 1-MEBBİS'ten Personel Listesi yüklendiğinde otomatik olarak ilk sıraya Müdür,Müdür Yardımcısı sonra alfabetik sıraya göre öğretmenleri sıralayarak yüklenir.                                                                                                                                                 Not: 2-Liste yüklendikten sonra hangi kişiye hangi veri tipinden ek ders verilecekse ismin hizasındaki veri tiplerinin olduğu sütuna 1 yazınız.(101 veri tipinin altına yazmayınız bu veri tipi zaten varsayılandır ve otomatik gelir buna ek olarak ne eklemek isteniyorsa o sütundaki veri tipine 1 yazabilirsiniz.Böylece Fiili Ek Ders sayfasında PERSONEL BİLGİSİ GETİR butonuna tıkladığınızda işlenen veri tipi hazır gelecek.                                                                                                                                                    Not: 3-Arşivdeki soldaki ok, arşivi bu çalışma kitabı dışında kaydetmek için,sağdaki  ok ise daha önce proğram dışı farklı bir yere kaydedilen arşivi çağırmak içindir. ",null,null,null,null,null,null,null,null,null,null,null,null,null,null,null,null,null,null,null,"Gündüz","Gündüz (Yüksek Lisans)","Gece","%25 Fazla Gündüz","%25 Fazla Gece","Belleticilik","Sınav Görevi","Egzersiz","Hizmetiçi","Ekders Yer.Geç.Gör. - Gündüz","Ekders Yer.Geç.Gör. - Gece","Ekders Yer.Geç.Gör. - %25 Gündüz","Ekders Yer.Geç.Gör. - %25 Gece","Atış Eğitimi","Cezaevleri Eğitim Merkezi - 160*Saat","Takviye kursu(Gündüz)","Takviye kursu(Haftasonu/Gece)","Belleticilik %25 Fazla","Nöbet Ücreti","Nöbet Ücreti % 25 Fazla","İYEP-Gündüz","İYEP-Gece-HS","Gündüz (2/3-AFAD Eğt.Yard.)",false]
[null,null,null,null,null,null,null,null,null,null,null,null,null,null,null,null,null,null,null,null,null,null,null,{"$f":"COUNTA(X4:X9)","v":0},0,0,0,0,0,0,0,0,0,0,0,0,0,0,0,0,0,0,0,0,0,0]
["Sıra No","T.C Kimlik No","Adı Soyadı","İstihdam Tipi","Görevi","Alanı","Durumu","Arşiv No","Eğitimi","Ay.Der/Kad.","Son Terfi Tarihi","Emekli Sicil No","Kurum Sicil No","Kadro Unvanı","Görevi","Alanı","Görev Yeri","İli","İlçesi","Durumu","Cinsiyeti","Arşiv No","And/BİLSEM Yerleştirme Bilgisi",101,101,102,103,104,106,107,108,109,110,111,112,113,114,115,116,117,118,119,121,122,123,212]
[1,null,"MELEK YILDIZ","Kadrolu","Bilgisayar İşletmeni",null,"Görevde",124]
[2,null,"AYDIN ÖKTEMER","Kadrolu","Hizmetli",null,"Görevde",380]
[3,null,"HASAN KAPUCU","Kadrolu","Hizmetli",null,"Görevde",418]
[4,null,"İBRAHİM GÜLMEZ","Kadrolu","Hizmetli",null,"Görevde"]
[5,null,"MEVLÜT AYDOĞMUŞ","Kadrolu","Hizmetli",null,"Görevde",662]
[6,null,"NECDET EROL","Kadrolu","İlçe Milli Eğitim Müdürü","Türk Dili ve Edebiyatı","Görevde"]
[7,null,"RABİA BEKMEZCİ","Kadrolu","Memur",null,"Görevde"]
[8,null,"İSA DAĞTAŞ","Kadrolu","Memur(Ş)",null,"Görevde"]
[9,null,"ADİLE ÖZBEK","Kadrolu","Öğretmen","Tarım Teknolojileri / Tarım / Bahçe Peyzaj","Görevde",17]
[10,null,"AYŞE TOSUN","Kadrolu","Öğretmen","İmam-Hatip Lisesi Meslek Dersleri","Görevde",426]
[11,null,"BÜŞRA ÖZLÜK","Kadrolu","Öğretmen","İlköğretim Matematik","Görevde",0]
[12,null,"MEVLÜT ŞEREF","Kadrolu","Öğretmen","Türkçe","Görevde",5]
[13,null,"SEMRA YILMAZ","Kadrolu","Öğretmen","Türkçe","Görevde"]
[14,null,"SERAP GÖKÇEN","Kadrolu","Öğretmen","Fizik","Görevde",370]
[15,null,"ÖZLEM TURGUT","Kadrolu","Programcı",null,"Görevde",423]
[16,null,"FERİT KİTAPCI","Kadrolu","Şef",null,"Görevde",597]
[17,null,"BAYRAM AKBAŞLI","Kadrolu","Şoför(GİH)",null,"Görevde"]
[18,null,"SELAMİ YALÇIN","Kadrolu","Şube Müdürü","Okul Öncesi","Görevde",19]
[19,null,"MUHAMMED BEKCİ","Kadrolu","Veri Hazırlama ve Kontrol İşletmeni",null,"Görevde"]
[20,null,"MUSTAFA TEKELİ","Kadrolu","Veri Hazırlama ve Kontrol İşletmeni",null,"Görevde"]
[21,null,"ÖZDEN ARSLAN","Kadrolu","Veri Hazırlama ve Kontrol İşletmeni",null,"Görevde"]
[22,null,"SERVET YÜREKLİ","Kadrolu","Veri Hazırlama ve Kontrol İşletmeni",null,"Görevde",372]

{"sheet":"Arsiv","index":1,"n_rows":1,"n_cols":104,"rows_kept":1,"cut":false,"hidden":false,"merged":[]}
["AYLIKLIKLAR","Sıra No","Kişileri Seç:DOĞRU/Bırak:HAYIR","Yüksek Lisans E/H","Adı,Soyadı","Görevi","TCKN","Seç","Veri Tip","Veri Açıklama","Maaş Karş.Ekders","Şube Reh. Fiilien girdiği","Öğ.Kiş.Hizm/ Kulüp Görevi ","Pazartesi","Salı","Çarşamba","Perşembe","Cuma","Cumartesi","Pazar","1.Haf.NET","Pazartesi","Salı","Çarşamba","Perşembe","Cuma","Cumartesi","Pazar","2.Haf.NET","Pazartesi","Salı","Çarşamba","Perşembe","Cuma","Cumartesi","Pazar","3.Haf.NET","Pazartesi","Salı","Çarşamba","Perşembe","Cuma","Cumartesi","Pazar","4.Haf.NET","Pazartesi","Salı","Çarşamba","Perşembe","Cuma","Cumartesi","Pazar","5.Haf.NET","Pazartesi","Salı","Çarşamba","Perşembe","Cuma","Cumartesi","Pazar","6.Haf.NET","GENEL TOPLAM","Öğrenci Kişilik Hizmetlerini Dahil Etmek İstemediğiniz Hafta Adlarını Aralarında Boşluk Bırıkmadan Yazınız. Örnek(23)","Haftasonu Ek Derslerin Hazırlık-Planlamada Dahil Edilmesini İstemiyorsanız.Hafta Adını Aralarında Boşluk Bırakmadan Yazınız. Örnek(24)","Hafta Netlerinin Otomatik Hesaplanmasını İstemediğiniz Hafta Adlarını Aralarında Boşluk Bırakmadan Yazınız.Örnek (2345) Bu Durumda Net Sütununda Manuel Düzeltme Yapabilirsiniz.O haftaların takibi hesaplanması size bırakalır.",1,2,3,4,5,6,7,null,null,null,null,null,null,null,null,null,null,null,null,null,null,null,null,null,null,null,null,null,null,null,null,null,null,null,null,null,null,null,false]

{"sheet":"FiilenGirEkDers","index":2,"n_rows":12,"n_cols":98,"rows_kept":12,"cut":false,"hidden":false,"merged":[[0,30,0,60],[3,60,5,60],[3,52,3,59],[3,44,3,51],[1,0,1,3],[2,0,2,3],[1,4,1,8],[2,4,2,8],[3,9,4,11],[1,49,1,50],[2,49,2,50],[1,63,5,63],[1,62,5,62],[1,61,5,61],[1,9,2,40],[3,12,3,19],[3,20,3,27],[3,28,3,35],[3,36,3,43]]}
["2023-01-01",true,".",1,false,1,100,"özel ders saatleri","Kadrolu","İlçe Milli Eğitim Müdürlüğü",null,null,"HASAN KAPUCU","MEMUR","MAHMUT SERT","ŞUBE MÜDÜRÜ","*","*","*",null,"*","*","*",null,true,true,"31/7/2023",false,true,false,"FİİLEN GİRİLEN EKDERS PUANTAJ SAYFASI",null,null,null,null,null,null,null,null,null,null,null,null,null,null,null,null,null,null,null,null,null,null,null,null,null,null,null,null,null,null,false,null,null,null,null,null,null,null,null,null,null,null,null,null,null,null,null,null,null,null,null,null,null,null,null,null,null,null,null,null,null,null,null,null,null,null,101]
["İlçe / İL",null,null,null,"Yalvaç/ISPARTA",null,null,null,null,"KADROLU ÖĞRETMENLERİN FİİLEN GİRİLEN DERSLERE GÖRE PUANTAJ ÇİZELGESİ(BEŞ HAFTALIK)",null,null,null,null,null,null,null,null,null,null,null,null,null,null,null,null,null,null,null,null,null,null,null,null,null,null,null,null,null,null,null,null,null,null,null,null,null,null,null,"AY",null,null,null,null,null,null,null,null,null,null,"Ağustos","Kişilik Hizmetleri Muaf","Haftasonu Hazırlık/Planlama Muaf","Ekders Hesaplama Muaf"]
["Kurumu",null,null,null,"İLÇE MİLLİ EĞİTİM MÜDÜRLÜĞÜ",null,null,null,null,null,null,null,null,null,null,null,null,null,null,null,null,null,null,null,null,null,null,null,null,null,null,null,null,null,null,null,null,null,null,null,null,null,null,null,null,null,null,null,null,"YIL",null,null,null,null,null,null,null,null,null,null,2023]
[null,null,null,null,null,null,null,null,null,"Genel Girişler",null,null,"1.HAFTA",null,null,null,null,null,null,null,"2.HAFTA",null,null,null,null,null,null,null,"3.HAFTA",null,null,null,null,null,null,null,"4.HAFTA",null,null,null,null,null,null,null,"5.HAFTA",null,null,null,null,null,null,null,"6.HAFTA",null,null,null,null,null,null,null,"GENEL TOPLAM"]
[null,null,null,null,null,null,null,null,null,null,null,null,31,1,2,3,4,5,6,"",7,8,9,10,11,12,13,"",14,15,16,17,18,19,20,"",21,22,23,24,25,26,27,"",28,29,30,31,1,2,3,"",null,null,null,null,null,null,null,""]
["Sıra No","AKTİF","Yüksek Lisans E/H","Adı Soyadı","Görevi","TCKN","Seç","Veri Tip","Veri Açıklama","Maaş Karşılığı           Ekders","Şube Rehberlik           Fiilien girdiği","Öğ.Kiş.Hizmet/       Kulüp Görevi ","Pazartesi","Salı","Çarşamba","Perşembe","Cuma","Cumartesi","Pazar","1.Haf.NET","Pazartesi","Salı","Çarşamba","Perşembe","Cuma","Cumartesi","Pazar","2.Haf.NET","Pazartesi","Salı","Çarşamba","Perşembe","Cuma","Cumartesi","Pazar","3.Haf.NET","Pazartesi","Salı","Çarşamba","Perşembe","Cuma","Cumartesi","Pazar","4.Haf.NET","Pazartesi","Salı","Çarşamba","Perşembe","Cuma","Cumartesi","Pazar","5.Haf.NET","Pazartesi","Salı","Çarşamba","Perşembe","Cuma","Cumartesi","Pazar","6.Haf.NET",null,null,null,null,null,null,null,null,null,null,"1. Hafta","2. Hafta","3. Hafta","4. Hafta","5. Hafta","6. Hafta"]
[1,true,null,"ADİLE ÖZBEK","Tarım Teknolojileri / Tarım / Bahçe Peyzaj",null,"+",101,"Gündüz",null,null,null,null,null,null,null,null,null,null,null,null,null,null,null,null,null,null,null,null,null,null,null,null,null,null,null,null,null,null,null,null,null,null,null,null,null,null,null,null,null,null,null,null,null,null,null,null,null,null,null,0,null,null,null,null,null,null,null,null,101,{"$f":"IF($T7=0,\".\",$T7)","v":"."},{"$f":"IF($AB7=0,\".\",$AB7)","v":"."},{"$f":"IF($AJ7=0,\".\",$AJ7)","v":"."},{"$f":"IF($AR7=0,\".\",$AR7)","v":"."},{"$f":"IF($AZ7=0,\".\",$AZ7)","v":"."},{"$f":"IF($BH7=0,\".\",$BH7)","v":"."}]
[2,true,null,"AYŞE TOSUN","İmam-Hatip Lisesi Meslek Dersleri",null,"+",101,"Gündüz",null,null,null,null,null,null,null,null,null,null,null,null,null,null,null,null,null,null,null,null,null,null,null,null,null,null,null,null,null,null,null,null,null,null,null,null,null,null,null,null,null,null,null,null,null,null,null,null,null,null,null,0,null,null,null,null,null,null,null,null,null,{"$f":"IF($T8=0,\".\",$T8)","v":"."},{"$f":"IF($AB8=0,\".\",$AB8)","v":"."},{"$f":"IF($AJ8=0,\".\",$AJ8)","v":"."},{"$f":"IF($AR8=0,\".\",$AR8)","v":"."},{"$f":"IF($AZ8=0,\".\",$AZ8)","v":"."},{"$f":"IF($BH8=0,\".\",$BH8)","v":"."}]
[3,true,null,"BÜŞRA ÖZLÜK","İlköğretim Matematik",null,"+",101,"Gündüz",null,null,null,null,null,null,null,null,null,null,null,null,null,null,null,null,null,null,null,null,null,null,null,null,null,null,null,null,null,null,null,null,null,null,null,null,null,null,null,null,null,null,null,null,null,null,null,null,null,null,null,0,null,null,null,null,null,null,null,null,null,".",".",".",".",".","."]
[4,true,null,"MEVLÜT ŞEREF","Türkçe",null,"+",101,"Gündüz",null,null,null,null,null,null,null,null,null,null,null,null,null,null,null,null,null,null,null,null,null,null,null,null,null,null,null,null,null,null,null,null,null,null,null,null,null,null,null,null,null,null,null,null,null,null,null,null,null,null,null,0,null,null,null,null,null,null,null,null,null,".",".",".",".",".","."]
[5,true,null,"SEMRA YILMAZ","Türkçe",null,"+",101,"Gündüz",null,null,null,null,null,null,null,null,null,null,null,null,null,null,null,null,null,null,null,null,null,null,null,null,null,null,null,null,null,null,null,null,null,null,null,null,null,null,null,null,null,null,null,null,null,null,null,null,null,null,null,0,null,null,null,null,null,null,null,null,null,".",".",".",".",".","."]
[6,true,null,"SERAP GÖKÇEN","Fizik",null,"+",101,"Gündüz",null,null,null,null,null,null,null,null,null,null,null,null,null,null,null,null,null,null,null,null,null,null,null,null,null,null,null,null,null,null,null,null,null,null,null,null,null,null,null,null,null,null,null,null,null,null,null,null,null,null,null,0,null,null,null,null,null,null,null,null,null,".",".",".",".",".","."]

{"sheet":"Kodlar","index":3,"n_rows":27,"n_cols":9,"rows_kept":27,"cut":false,"hidden":false,"merged":[]}
["S.N.","Veri Tip Kodu","Veri Tipi","Maaş Karşılığında Değerlendirilir (Haftaiçi)","Maaş Karşılığında Değerlendirilmez (Haftasonu/Haftaiçi 18:00'dan sonra)","Hazırlık-Planlamada Değerlendirilir","Maaş Karşılığı Sınıf Öğretmeni ve Özel Eğitim Öğretmeni 18 diğer durum 15","Hazırlık planlama","Maaş karşılığı"]
[1,101,"Gündüz","X",null,"X",null,"101,102,103,104,110,111,113,116,117,122,123","101,103,110,112,116,"]
[2,102,"Gece",null,"X","X"]
[3,103,"%25 Fazla Gündüz","X",null,"X",null,"104,112,113","104,112,113"]
[4,104,"%25 Fazla Gece",null,"X","X"]
[5,106,"Belleticilik",null,"X"]
[6,107,"Sınav Görevi",null,"X"]
[7,108,"Egzersiz",null,"X"]
[8,109,"Hizmetiçi",null,"X"]
[9,110,"Ekders Yer.Geç.Gör. - Gündüz","X",null,"X"]
[10,111,"Ekders Yer.Geç.Gör. - Gece",null,"X","X"]
[11,112,"Ekders Yer.Geç.Gör. - %25 Gündüz","X",null,"X"]
[12,113,"Ekders Yer.Geç.Gör. - %25 Gece",null,"X","X"]
[13,114,"Atış Eğitimi"]
[14,115,"Cezaevleri Eğitim Merkezi - 160*Saat"]
[15,116,"Takviye kursu(Gündüz)","X",null,"X"]
[16,117,"Takviye kursu(Haftasonu/Gece)",null,"X","X"]
[17,118,"Belleticilik %25 Fazla",null,"X"]
[18,119,"Nöbet Görevi"]
[19,107,"Salon Başkanı",null,"X"]
[20,107,"Gözetmen",null,"X"]
[21,107,"Yedek Gözetmen",null,"X"]
[22,107,"Yedek Engelli Gözetmen",null,"X"]
[23,121,"Nöbet Ücreti % 25 Fazla"]
[24,122,"İYEP-Gündüz","X",null,"x"]
[25,123,"İYEP-Gece-HS",null,"X","x"]
[26,212,"Gündüz (2/3-AFAD Eğt.Yard.)","X"]